bitfinex-derivatives/quotes_BTCF0:USTF0_20251115
["timestamp","ask_amount","ask_price","bid_price","bid_amount"]
[1763175146880,0.1279,96037.0,96036.0,0.06227619]
[1763175147188,0.1279,96037.0,96036.0,0.63288619]
[1763175147487,0.1279,96037.0,96036.0,0.00015619]
[1763175149098,0.15565,96030.0,96029.0,0.50448]
[1763175149291,0.15784803,96030.0,96029.0,0.50448]
[1763175150294,0.15565,96021.0,96020.0,0.80429462]
[1763175150494,0.15565,96021.0,96020.0,0.66997929]
[1763175151095,0.15565,96021.0,96020.0,0.73037929]
[1763175151893,0.12027,96021.0,96020.0,0.73037929]
[1763175153497,0.15580619,96030.0,96029.0,0.12151]
[1763175153699,0.34886442,96030.0,96029.0,0.12151]
[1763175153894,0.15800422,96030.0,96029.0,0.12151]
[1763175156297,0.16000422,96030.0,96029.0,0.12151]
[1763175157501,0.12462422,96030.0,96029.0,0.2257338]
[1763175158097,0.00215619,96030.0,96029.0,0.2257338]
[1763175158298,0.00435422,96030.0,96029.0,0.2257338]
[1763175160503,0.00215619,96030.0,96029.0,0.2257338]
[1763175161099,0.00174528,96030.0,96029.0,0.2257338]
[1763175161292,0.00026029,96046.0,96045.0,0.2257165]
[1763175162906,0.00326029,96046.0,96045.0,0.2257165]
[1763175168609,0.12353029,96046.0,96045.0,0.2257165]
[1763175169311,0.06382029,96046.0,96045.0,0.2257165]
[1763175170013,0.12353029,96046.0,96045.0,0.2257165]
[1763175171512,0.12353029,96046.0,96045.0,0.7300365]
[1763175174503,0.12353029,96046.0,96045.0,0.62583]
[1763175174702,0.12353029,96046.0,96045.0,0.62579]
[1763175181023,0.00326029,96046.0,96045.0,0.62579]
[1763175182720,0.00015619,96055.0,96054.0,0.2233467]
[1763175182915,0.00015619,96055.0,96054.0,1.0883867]
[1763175184025,0.00115619,96055.0,96054.0,1.0883867]
[1763175184320,0.3608,96078.0,96075.0,0.10455]
[1763175184513,0.3608,96078.0,96075.0,0.60875]
[1763175185017,0.0335,96082.0,96075.0,0.60875]
[1763175185829,0.008,96076.0,96075.0,0.60875]
[1763175186125,0.008,96076.0,96075.0,0.62375852]
[1763175186328,0.11449,96076.0,96075.0,0.62375852]
[1763175186526,0.11649,96076.0,96075.0,0.62375852]
[1763175187422,0.01,96076.0,96075.0,0.62375852]
[1763175187626,0.06357,96076.0,96075.0,0.62375852]
[1763175188126,0.01,96076.0,96075.0,0.62375852]
[1763175190827,0.007,96076.0,96075.0,0.62375852]
[1763175191128,0.01,96076.0,96075.0,0.62375852]
[1763175192022,0.00015619,96085.0,96084.0,0.09866]
[1763175192222,0.00015619,96085.0,96084.0,0.7069442]
[1763175192619,0.46167,96107.0,96106.0,0.09266]
[1763175193930,0.3628,96107.0,96106.0,0.09266]
[1763175194123,0.46367,96107.0,96106.0,0.09266]
[1763175195023,0.41702,96107.0,96106.0,0.09266]
[1763175195224,0.005,96107.0,96106.0,0.09266]
[1763175195418,0.05622,96107.0,96106.0,0.09266]
[1763175195624,0.05422,96107.0,96106.0,0.09266]
[1763175195818,0.0051561,96116.0,96115.0,0.1904706]
[1763175196030,0.0051561,96116.0,96115.0,0.5512706]
[1763175196226,0.1329,96144.0,96143.0,0.07604]
[1763175196719,0.1329,96144.0,96134.0,0.1909853]
[1763175196720,0.1329,96152.0,96151.0,0.07604]
[1763175196925,0.41702,96156.0,96155.0,0.07604]
[1763175197126,0.3658,96156.0,96155.0,0.07604]
[1763175197331,0.3658,96156.0,96155.0,0.0909381]
[1763175197528,0.005,96156.0,96155.0,0.4517381]
[1763175198235,0.006,96156.0,96155.0,0.4517381]
[1763175198430,0.1389,96156.0,96155.0,0.0148981]
[1763175198632,0.1389,96156.0,96147.0,0.39882]
[1763175198633,0.10087,96148.0,96147.0,0.39882]
[1763175198933,0.006,96156.0,96155.0,0.07604]
[1763175199236,0.005,96156.0,96155.0,0.43684]
[1763175199429,0.007,96156.0,96155.0,0.43684]
[1763175199621,0.05822,96156.0,96155.0,0.43684]
[1763175199826,0.10087,96148.0,96147.0,0.45176834]
[1763175200629,0.05122,96148.0,96147.0,0.45176834]
[1763175201132,0.1399,96156.0,96155.0,0.07604]
[1763175201334,0.1399,96156.0,96155.0,0.03802]
[1763175201723,0.005,96156.0,96155.0,0.43684]
[1763175202734,0.007,96156.0,96155.0,0.43684]
[1763175204636,0.1399,96156.0,96155.0,0.43684]
[1763175205036,0.1399,96156.0,96155.0,0.5409273]
[1763175205234,0.1399,96156.0,96155.0,0.43684]
[1763175207439,0.007,96156.0,96155.0,0.43684]
[1763175208335,0.006,96156.0,96155.0,0.43684]
[1763175208840,0.006,96156.0,96155.0,0.54083821]
[1763175209031,0.005,96156.0,96155.0,0.54083821]
[1763175211731,0.00010335,96165.0,96164.0,0.1621976]
[1763175211937,0.00010335,96165.0,96164.0,0.5229976]
[1763175212138,3.32e-06,96166.0,96165.0,0.0474]
[1763175212743,3.32e-06,96166.0,96165.0,0.15139821]
[1763175213144,0.00100332,96166.0,96165.0,0.15139821]
[1763175213438,0.38904,96208.0,96194.0,0.1494451]
[1763175213646,0.38904,96208.0,96168.0,0.6244389]
[1763175213647,0.10557,96196.0,96195.0,0.0454]
[1763175214038,0.10557,96196.0,96195.0,0.14935604]
[1763175214941,0.05507,96196.0,96195.0,0.14935604]
[1763175215140,0.005,96196.0,96195.0,0.14935604]
[1763175216241,0.02824,96228.0,96198.0,0.1040405]
[1763175216545,0.10057,96219.0,96218.0,0.18713164]
[1763175216839,0.02824,96210.0,96209.0,0.29116054]
[1763175217039,0.02824,96210.0,96209.0,0.4648289]
[1763175217230,0.22129823,96220.0,96219.0,0.1040181]
[1763175217231,0.02824,96220.0,96219.0,0.1040181]
[1763175217435,0.02824,96220.0,96219.0,0.4648181]
[1763175217639,0.02824,96228.0,96227.0,0.1040095]
[1763175217842,0.02824,96228.0,96227.0,0.4648095]
[1763175218036,0.00025975,96246.0,96235.0,0.1040008]
[1763175218242,0.00025975,96246.0,96235.0,0.4648008]
[1763175218641,0.00025975,96246.0,96235.0,0.3608]
[1763175218839,0.02824,96240.0,96235.0,0.46472903]
[1763175219036,0.00025975,96246.0,96235.0,0.46472903]
[1763175220247,0.10082975,96246.0,96245.0,0.3608]
[1763175221350,0.10082975,96246.0,96245.0,0.37609124]
[1763175224755,0.10057,96237.0,96236.0,0.18713164]
[1763175224940,0.10057,96236.0,96235.0,0.3608]
[1763175225546,0.10057,96236.0,96235.0,0.376537]
[1763175227043,0.10057,96236.0,96235.0,0.377537]
[1763175227451,0.10057,96236.0,96235.0,0.016737]
[1763175227651,0.10057,96236.0,96235.0,0.519977]
[1763175227849,0.10057,96236.0,96235.0,0.518977]
[1763175232550,0.10057,96227.0,96226.0,0.00015593]
[1763175232747,0.46137,96227.0,96226.0,0.50335593]
[1763175233147,0.46137,96227.0,96226.0,0.51893595]
[1763175234241,0.46137,96227.0,96226.0,0.01573595]
[1763175234944,0.10057,96211.0,96210.0,0.18713164]
[1763175235147,0.10057,96208.0,96207.0,0.3608]
[1763175235349,0.10057,96208.0,96207.0,0.864]
[1763175236451,0.10057,96208.0,96207.0,0.87971612]
[1763175237455,0.10057,96208.0,96207.0,0.51891612]
[1763175240464,0.05007,96208.0,96207.0,0.62294722]
[1763175240657,0.00015537,96217.0,96216.0,0.1040213]
[1763175240860,0.00015537,96217.0,96216.0,0.9680613]
[1763175241747,0.04947537,96217.0,96216.0,0.86404]
[1763175242354,0.09519537,96217.0,96216.0,0.86404]
[1763175243962,0.00015537,96217.0,96216.0,0.86404]
[1763175245358,0.3608,96248.0,96236.0,0.1039997]
[1763175245565,0.12328,96237.0,96236.0,0.6072397]
[1763175245757,0.02824,96237.0,96236.0,0.6072397]
[1763175247359,0.02924,96237.0,96236.0,0.6072397]
[1763175247760,0.12428,96237.0,96236.0,0.50324]
[1763175248064,0.12305,96228.0,96227.0,0.49475711]
[1763175248263,0.12305,96228.0,96227.0,0.86415585]
[1763175251571,0.07733,96228.0,96227.0,0.86415585]
[1763175252270,0.12468,96228.0,96227.0,0.86415585]
[1763175254967,0.12468,96228.0,96227.0,0.00015585]
[1763175255168,0.09273,96208.0,96207.0,0.51891612]
[1763175255364,0.09273,96208.0,96207.0,0.5032]
[1763175255959,0.09273,96208.0,96207.0,0.51841812]
[1763175256671,0.09273,96208.0,96207.0,0.01521812]
[1763175256873,0.09273,96199.0,96198.0,0.00015585]
[1763175257460,0.39028803,96200.0,96195.0,0.01524984]
[1763175257461,0.09273,96196.0,96195.0,0.01524984]
[1763175257866,0.09273,96190.0,96189.0,0.13380126]
[1763175258067,0.09492803,96190.0,96189.0,0.13380126]
[1763175258975,0.09492803,96190.0,96189.0,0.14937096]
[1763175259474,0.09273,96181.0,96180.0,0.1339572]
[1763175259675,0.09173,96181.0,96180.0,0.00015594]
[1763175260662,0.09173,96181.0,96180.0,0.00115594]
[1763175261269,0.07267,96184.0,96181.0,0.1040592]
[1763175261466,0.12002,96184.0,96181.0,0.1040592]
[1763175261670,0.02729,96184.0,96181.0,0.11988927]
[1763175261872,0.02744594,96190.0,96189.0,0.1040505]
[1763175262070,0.02744594,96190.0,96189.0,0.6072905]
[1763175263570,0.00015594,96190.0,96189.0,0.6082905]
[1763175265476,0.02744594,96190.0,96189.0,0.6082905]
[1763175270085,0.09827667,96190.0,96189.0,0.001]
[1763175270781,0.09827667,96190.0,96181.0,0.01583007]
[1763175270986,0.09237,96181.0,96180.0,0.1339572]
[1763175271186,0.09237,96181.0,96180.0,0.00015594]
[1763175271391,0.09237,96181.0,96180.0,0.01483327]
[1763175272088,0.09237,96179.0,96178.0,0.44752327]
[1763175272290,0.09237,96173.0,96170.0,0.13380126]
[1763175272782,0.09237,96173.0,96169.0,0.50328]
[1763175273587,0.09237,96173.0,96169.0,0.6073519]
[1763175274876,0.09237,96173.0,96169.0,0.50328]
[1763175275887,0.09237,96173.0,96172.0,0.10415888]
[1763175277090,0.09237,96173.0,96172.0,0.11887476]
[1763175277285,0.09237,96173.0,96172.0,0.14979476]
[1763175277590,0.45317,96187.0,96186.0,0.03092]
[1763175277791,0.09237,96178.0,96177.0,0.14926126]
[1763175277978,0.09237,96178.0,96177.0,0.03092]
[1763175278787,0.09237,96178.0,96177.0,0.1349835]
[1763175279696,0.09237,96178.0,96177.0,0.53428]
[1763175279988,0.09237,96178.0,96177.0,0.50336]
[1763175282992,0.00219803,96180.0,96172.0,0.01480586]
[1763175282993,0.09237,96173.0,96172.0,0.01480586]
[1763175283194,0.09237,96173.0,96172.0,0.14979476]
[1763175283390,0.09237,96173.0,96172.0,0.03026586]
[1763175283588,0.09237,96173.0,96172.0,0.01480586]
[1763175286488,0.09237,96173.0,96172.0,0.01471588]
[1763175286687,0.09237,96167.0,96166.0,0.00025997]
[1763175287699,0.09246148,96167.0,96166.0,0.00025997]
[1763175288899,0.09246148,96167.0,96166.0,0.01492237]
[1763175289292,0.09237,96164.0,96163.0,0.00015594]
[1763175290803,0.09237,96164.0,96161.0,2.21e-06]
[1763175291101,0.09237,96150.0,96149.0,0.5034]
[1763175291402,0.09456803,96150.0,96149.0,0.51761879]
[1763175292701,0.09456803,96150.0,96149.0,0.01421879]
[1763175293004,0.09456803,96150.0,96140.0,0.00015594]
[1763175293005,0.09237,96141.0,96140.0,0.00015594]
[1763175294008,0.09237,96141.0,96140.0,0.01424654]
[1763175298500,0.09237,96141.0,96140.0,0.11835014]
[1763175298710,0.09237,96141.0,96140.0,0.20353014]
[1763175299102,0.09237,96141.0,96140.0,0.09942654]
[1763175300612,0.09237,96141.0,96140.0,0.01424654]
[1763175302505,0.09337,96141.0,96140.0,0.01424654]
[1763175302909,0.10593,96136.0,96135.0,0.00468089]
[1763175303211,0.10602148,96136.0,96135.0,0.00468089]
[1763175303707,0.10602148,96136.0,96120.0,0.50352]
[1763175303708,0.08051,96130.0,96120.0,0.50352]
[1763175303908,0.08051,96105.0,96104.0,0.3608]
[1763175304107,0.08051,96102.0,96101.0,0.1881579]
[1763175304308,0.08051,96102.0,96101.0,0.2729579]
[1763175304504,0.08051,96102.0,96101.0,0.1688121]
[1763175304709,0.08051,96102.0,96099.0,0.50352]
[1763175304710,0.08270803,96100.0,96099.0,0.50352]
[1763175305009,0.08051,96097.0,96096.0,0.40339]
[1763175305312,0.08051,96097.0,96096.0,0.3608]
[1763175306013,0.07851,96097.0,96096.0,0.3608]
[1763175311017,0.10577,96096.0,96095.0,0.01923051]
[1763175311213,0.46657,96096.0,96095.0,0.01923051]
[1763175312025,7.436e-05,96100.0,96099.0,0.08307]
[1763175312327,7.436e-05,96100.0,96099.0,0.44387]
[1763175313720,0.00227239,96100.0,96099.0,0.44387]
[1763175314127,0.04214239,96100.0,96099.0,0.44387]
[1763175314629,0.08358239,96100.0,96099.0,0.08307]
[1763175315021,0.08358239,96100.0,96099.0,0.58671]
[1763175316326,7.436e-05,96100.0,96099.0,0.58671]
[1763175318525,0.03994436,96100.0,96099.0,0.58671]
[1763175318925,7.436e-05,96100.0,96099.0,0.58671]
[1763175320622,0.08146602,96114.0,96113.0,0.08307]
[1763175320825,0.00015602,96114.0,96113.0,0.1872027]
[1763175321724,0.00028294,96114.0,96113.0,0.1872027]
[1763175321922,0.3608,96142.0,96131.0,0.08307]
[1763175322127,0.08131,96136.0,96135.0,0.1871789]
[1763175323228,0.44211,96143.0,96142.0,0.08307]
[1763175324638,0.08131,96143.0,96142.0,0.08307]
[1763175325334,0.08431,96143.0,96142.0,0.08307]
[1763175325629,0.08431,96143.0,96141.0,0.1041014]
[1763175325630,0.08131,96134.0,96133.0,0.27034379]
[1763175325933,0.08131,96134.0,96128.0,0.3608]
[1763175325934,0.08131,96129.0,96128.0,0.44387]
[1763175326135,0.08131,96129.0,96128.0,0.94751]
[1763175326532,0.10575,96129.0,96128.0,0.94751]
[1763175327035,0.10675,96129.0,96128.0,0.94751]
[1763175327930,0.10775,96129.0,96128.0,0.94747]
[1763175328427,0.10575,96129.0,96128.0,0.94747]
[1763175328736,0.10775,96129.0,96128.0,0.94747]
[1763175329524,0.10675,96129.0,96128.0,0.94747]
[1763175329726,0.10775,96129.0,96128.0,0.94747]
[1763175330834,0.08331,96129.0,96128.0,0.94747]
[1763175340928,0.08331,96129.0,96128.0,0.44387]
[1763175341133,0.08331,96129.0,96128.0,0.94739]
[1763175346147,0.07578,96127.0,96126.0,0.00015602]
[1763175347242,0.07678,96127.0,96126.0,0.00015602]
[1763175347542,0.07778,96127.0,96126.0,0.00015602]
[1763175350254,0.07578,96127.0,96126.0,0.00015602]
[1763175350438,0.07778,96127.0,96126.0,0.00015602]
[1763175351148,0.07778,96127.0,96126.0,0.07937602]
[1763175351348,0.002,96127.0,96126.0,0.18349462]
[1763175351551,0.07778,96127.0,96126.0,0.18349462]
[1763175353249,0.07578,96127.0,96126.0,0.18349462]
[1763175353551,0.002,96127.0,96126.0,0.18349462]
[1763175355645,0.001,96127.0,96126.0,0.18349462]
[1763175355850,0.002,96127.0,96126.0,0.18349462]
[1763175356748,0.07778,96127.0,96126.0,0.07937602]
[1763175358951,0.03932,96127.0,96126.0,0.07937602]
[1763175359550,0.03932,96127.0,96126.0,0.58285602]
[1763175361250,0.002,96127.0,96126.0,0.58285602]
[1763175361457,0.06928,96127.0,96126.0,0.58285602]
[1763175362249,0.06928,96127.0,96126.0,0.58281602]
[1763175363149,0.06928,96127.0,96126.0,0.07937602]
[1763175363850,0.06928,96127.0,96126.0,0.58281602]
[1763175364555,0.02036997,96166.0,96165.0,0.1040764]
[1763175365051,0.08764997,96166.0,96165.0,0.1040764]
[1763175365951,0.08864997,96166.0,96165.0,0.1040764]
[1763175366159,0.08964997,96166.0,96165.0,0.1040764]
[1763175367156,0.08864997,96166.0,96165.0,0.1040764]
[1763175367458,0.08964997,96166.0,96165.0,0.1040764]
[1763175368054,0.08864997,96166.0,96165.0,0.1040764]
[1763175368449,0.02136997,96166.0,96165.0,0.1040764]
[1763175368653,0.00125997,96166.0,96165.0,0.1040764]
[1763175368855,0.00025997,96166.0,96165.0,0.1040764]
[1763175369059,0.00125997,96166.0,96165.0,0.1040764]
[1763175369465,0.02011,96173.0,96172.0,0.1040688]
[1763175369664,0.02011,96173.0,96172.0,0.4648688]
[1763175370550,0.02111,96173.0,96172.0,0.4648688]
[1763175370955,0.001,96173.0,96172.0,0.4648688]
[1763175371349,0.00015602,96175.0,96172.0,0.4648688]
[1763175371555,0.45277,96200.0,96199.0,0.1040396]
[1763175371769,0.09197,96200.0,96199.0,0.4648396]
[1763175371963,0.09270267,96200.0,96199.0,0.4648396]
[1763175372558,0.09270267,96200.0,96199.0,0.37603662]
[1763175373358,0.02011,96200.0,96199.0,0.37603662]
[1763175373655,0.09197,96200.0,96199.0,0.37603662]
[1763175374756,0.09270267,96200.0,96199.0,0.37603662]
[1763175376966,0.02011,96200.0,96199.0,0.37603662]
[1763175377867,0.05667,96200.0,96199.0,0.37603662]
[1763175378065,0.09270267,96200.0,96199.0,0.37603662]
[1763175378266,0.02084267,96200.0,96199.0,0.37603662]
[1763175378469,0.05740267,96200.0,96199.0,0.37603662]
[1763175378668,0.09270267,96200.0,96199.0,0.37603662]
[1763175379168,0.02084267,96200.0,96199.0,0.37603662]
[1763175380760,0.02011,96200.0,96199.0,0.37603662]
[1763175381660,0.05667,96200.0,96199.0,0.37603662]
[1763175381865,0.02011,96200.0,96199.0,0.37603662]
[1763175382861,0.05667,96200.0,96199.0,0.37603662]
[1763175383269,0.09270267,96200.0,96199.0,0.01523662]
[1763175383466,0.07186,96193.0,96192.0,0.50312]
[1763175384080,0.07186,96193.0,96192.0,0.51823406]
[1763175384566,0.43266,96193.0,96192.0,0.01511406]
[1763175384871,0.07186,96188.0,96187.0,0.50308]
[1763175385168,0.07186,96181.0,96180.0,0.3608]
[1763175385362,0.07186,96181.0,96180.0,0.86607803]
[1763175385960,0.07186,96181.0,96180.0,0.50527803]
[1763175386158,0.07186,96181.0,96180.0,0.52060936]
[1763175393676,0.07186,96181.0,96180.0,0.01752936]
[1763175403166,0.05294,96184.0,96181.0,0.1040591]
[1763175403375,0.05294,96184.0,96183.0,0.1040569]
[1763175404177,0.02081,96184.0,96183.0,0.1040569]
[1763175405675,0.02011,96200.0,96199.0,0.1040396]
[1763175405876,0.02011,96200.0,96199.0,0.9679596]
[1763175406075,0.05224,96200.0,96199.0,0.9679596]
[1763175408778,0.05297267,96200.0,96199.0,0.9679596]
[1763175409579,0.02084267,96200.0,96199.0,0.9679596]
[1763175409783,0.03238986,96206.0,96205.0,0.1040331]
[1763175410185,0.00025986,96206.0,96205.0,0.1040331]
[1763175411388,0.00025986,96206.0,96205.0,0.20797726]
[1763175412192,0.01968,96215.0,96205.0,0.20797726]
[1763175412389,0.01968,96215.0,96208.0,0.3608]
[1763175412985,0.01968,96215.0,96208.0,0.46474254]
[1763175415595,0.06378577,96209.0,96208.0,0.46474254]
[1763175415790,0.06378577,96209.0,96208.0,0.3608]
[1763175415990,0.06378577,96209.0,96208.0,0.86376]
[1763175418094,0.03228577,96209.0,96208.0,0.86376]
[1763175418401,0.00015577,96209.0,96208.0,0.86376]
[1763175419191,0.00015577,96209.0,96208.0,0.96770091]
[1763175421204,0.00015577,96209.0,96208.0,0.86376]
[1763175421205,0.06082577,96209.0,96208.0,0.86376]
[1763175422196,0.00015577,96209.0,96208.0,0.86376]
[1763175422599,0.00015577,96209.0,96208.0,0.86372]
[1763175422999,0.06082577,96209.0,96208.0,0.86372]
[1763175423499,0.03014577,96209.0,96208.0,0.86372]
[1763175423804,0.06182577,96209.0,96208.0,0.86372]
[1763175424705,0.06082577,96209.0,96208.0,0.86372]
[1763175424900,0.06182577,96209.0,96208.0,0.3608]
[1763175425101,0.06182577,96209.0,96208.0,0.86368]
[1763175425702,0.06182577,96209.0,96208.0,0.3608]
[1763175425907,0.06182577,96209.0,96208.0,0.86368]
[1763175426403,0.03114577,96209.0,96208.0,0.86368]
[1763175426598,0.00115577,96209.0,96208.0,0.86368]
[1763175426904,0.00015577,96209.0,96208.0,0.86368]
[1763175427105,0.00115577,96209.0,96208.0,0.86368]
[1763175427498,7e-08,96209.0,96208.0,0.96762091]
[1763175427694,7e-08,96209.0,96208.0,1.0415965]
[1763175427908,0.01783,96243.0,96210.0,0.00219803]
[1763175428105,0.01783,96243.0,96228.0,0.4648083]
[1763175428299,0.01783,96243.0,96235.0,0.1040007]
[1763175428500,0.01783,96243.0,96235.0,0.6068807]
[1763175428702,0.05467,96236.0,96235.0,0.6068807]
[1763175428897,0.08535,96236.0,96235.0,0.6068807]
[1763175429701,0.08635,96236.0,96235.0,0.6068807]
[1763175430701,0.08635,96236.0,96235.0,0.50288]
[1763175432313,0.05567,96236.0,96235.0,0.50288]
[1763175432605,0.08475,96236.0,96235.0,0.50288]
[1763175434606,0.08375,96236.0,96235.0,0.50288]
[1763175434806,0.08475,96236.0,96235.0,0.50288]
[1763175435812,0.05757,96234.0,96233.0,0.18770726]
[1763175436006,0.05757,96234.0,96233.0,0.69050726]
[1763175436800,0.02849,96234.0,96233.0,0.69050726]
[1763175437206,0.02568,96236.0,96233.0,0.69050726]
[1763175437915,0.005,96236.0,96235.0,0.1040007]
[1763175438609,0.005,96236.0,96235.0,0.20791353]
[1763175438815,0.006,96236.0,96235.0,0.20791353]
[1763175439014,0.023,96236.0,96235.0,0.20791353]
[1763175439703,0.08057,96236.0,96235.0,0.10391283]
[1763175439906,0.05757,96234.0,96233.0,0.5028]
[1763175441611,0.05857,96234.0,96233.0,0.5028]
[1763175442210,0.05757,96232.0,96231.0,0.1040045]
[1763175442516,0.05757,96232.0,96231.0,0.6067245]
[1763175443110,0.001,96234.0,96231.0,0.6067245]
[1763175444211,0.005,96236.0,96233.0,0.1040029]
[1763175444806,0.005,96236.0,96235.0,0.1040007]
[1763175445416,0.005,96236.0,96235.0,0.20791353]
[1763175445808,0.006,96236.0,96235.0,0.20791353]
[1763175447420,0.005,96236.0,96235.0,0.20791353]
[1763175447621,0.006,96236.0,96235.0,0.20791353]
[1763175448321,0.02303,96236.0,96235.0,0.20791353]
[1763175449910,0.07788,96236.0,96235.0,0.20791353]
[1763175450717,0.07788,96236.0,96235.0,0.10391283]
[1763175450922,0.05485,96234.0,96233.0,0.1040023]
[1763175451221,0.00015593,96245.0,96233.0,0.1040023]
[1763175451222,0.01703,96264.0,96263.0,0.1039704]
[1763175451516,0.07188,96264.0,96263.0,0.50264]
[1763175452316,0.01703,96264.0,96263.0,0.60652153]
[1763175454124,0.07288,96264.0,96263.0,0.50264]
[1763175454720,0.07188,96264.0,96263.0,0.50264]
[1763175456012,0.05485,96263.0,96262.0,0.3608]
[1763175456218,0.07188,96264.0,96262.0,0.4647715]
[1763175456817,0.05485,96263.0,96262.0,0.4647715]
[1763175458012,0.05485,96263.0,96262.0,0.3608]
[1763175462925,0.00025964,96286.0,96275.0,0.1039575]
[1763175463127,0.05985,96276.0,96275.0,0.86336]
[1763175463533,0.05985,96276.0,96275.0,0.96724261]
[1763175464026,0.06085,96276.0,96275.0,0.96724261]
[1763175464728,0.05985,96276.0,96275.0,0.96724261]
[1763175465131,0.05985,96276.0,96275.0,0.86336]
[1763175466623,0.05985,96276.0,96275.0,0.87836685]
[1763175466828,0.005,96276.0,96275.0,0.87836685]
[1763175467131,0.005,96276.0,96275.0,0.98223543]
[1763175467723,0.005,96276.0,96275.0,1.15503543]
[1763175467931,0.005,96276.0,96275.0,0.98223543]
[1763175469331,0.00025964,96286.0,96285.0,0.1039467]
[1763175469532,0.00025964,96286.0,96285.0,0.9676267]
[1763175469933,0.00025964,96286.0,96285.0,1.07148449]
[1763175470534,0.00125964,96286.0,96285.0,1.07148449]
[1763175477642,0.00125964,96286.0,96285.0,1.15624232]
[1763175478733,0.02679964,96286.0,96285.0,1.05229562]
[1763175479036,0.05229964,96286.0,96285.0,0.96753779]
[1763175481039,0.00125964,96286.0,96285.0,0.96753779]
[1763175481638,0.02679964,96286.0,96285.0,0.96753779]
[1763175481842,0.05229964,96286.0,96285.0,0.96753779]
[1763175483440,0.00125964,96286.0,96285.0,0.96753779]
[1763175484340,0.02679964,96286.0,96285.0,0.96753779]
[1763175485430,0.00125964,96286.0,96285.0,0.96753779]
[1763175485846,0.05229964,96286.0,96285.0,0.96753779]
[1763175486533,0.02734735,96286.0,96285.0,0.96753779]
[1763175487039,0.0143,96288.0,96285.0,0.96753779]
[1763175487040,0.03984,96288.0,96286.0,0.1039456]
[1763175487239,0.06534,96288.0,96286.0,0.1039456]
[1763175487740,0.06534,96288.0,96287.0,0.10385779]
[1763175488136,0.06634,96288.0,96287.0,0.10385779]
[1763175494652,0.04897,96286.0,96285.0,0.3608]
[1763175494945,0.04897,96286.0,96285.0,0.86316]
[1763175495145,0.04897,96286.0,96285.0,0.96701564]
[1763175496243,0.04897,96286.0,96285.0,0.86316]
[1763175497549,0.04897,96286.0,96285.0,0.9671067]
[1763175500148,0.43206482,96310.0,96285.0,0.9671067]
[1763175500149,0.3608,96310.0,96285.0,0.86316]
[1763175500349,0.07126482,96320.0,96285.0,0.86316]
[1763175500350,0.01502,96320.0,96309.0,0.1039208]
[1763175500552,0.01502,96320.0,96311.0,0.1039186]
[1763175500754,0.04216,96312.0,96311.0,0.1039186]
[1763175500951,0.04216,96312.0,96311.0,0.20774943]
[1763175501150,0.01502,96327.0,96325.0,0.1039035]
[1763175501346,0.01502,96327.0,96325.0,0.9676635]
[1763175501844,0.01502,96327.0,96325.0,1.07149433]
[1763175503054,0.00464254,96330.0,96325.0,1.14486717]
[1763175503256,0.01502,96344.0,96333.0,0.1038949]
[1763175503562,0.06358,96344.0,96343.0,0.1038841]
[1763175503763,0.06358,96344.0,96343.0,0.4646841]
[1763175504359,0.06358,96344.0,96343.0,0.3608]
[1763175504562,0.01502,96344.0,96343.0,0.56849014]
[1763175505952,0.04015,96352.0,96351.0,0.1038755]
[1763175506152,0.06358,96352.0,96351.0,0.9675555]
[1763175506554,0.06358,96352.0,96351.0,1.07135077]
[1763175507354,0.06358,96352.0,96351.0,0.9675555]
[1763175509363,1e-07,96365.0,96364.0,0.1038615]
[1763175509557,0.02822,96396.0,96364.0,0.86368]
[1763175509864,0.06194,96371.0,96370.0,0.13588949]
[1763175510063,0.06194,96371.0,96370.0,0.00235369]
[1763175510259,0.06194,96371.0,96364.0,0.01497231]
[1763175510462,0.04747,96361.0,96360.0,0.13573383]
[1763175510771,0.04747,96361.0,96360.0,0.01705899]
[1763175511264,0.01447,96371.0,96370.0,0.103855]
[1763175511464,0.06194,96371.0,96370.0,0.10605303]
[1763175512659,0.01447,96371.0,96370.0,0.10605303]
[1763175513764,0.01447,96371.0,96370.0,0.20981922]
[1763175514271,0.06194,96371.0,96370.0,0.20981922]
[1763175514767,0.06194,96371.0,96370.0,0.10605303]
[1763175514972,0.06194,96371.0,96370.0,0.00219803]
[1763175515672,0.04747,96369.0,96368.0,0.32528803]
[1763175517774,0.02322,96369.0,96368.0,0.35126803]
[1763175518174,0.00146535,96370.0,96369.0,0.1298361]
[1763175520071,0.00015477,96380.0,96379.0,0.1298253]
[1763175520267,0.0498228,96380.0,96379.0,0.4906253]
[1763175520466,0.0498228,96380.0,96379.0,0.38678]
[1763175520675,0.0498228,96380.0,96379.0,0.3608]
[1763175521170,0.0498228,96380.0,96379.0,0.38678]
[1763175521171,0.0255728,96380.0,96379.0,0.38678]
[1763175521679,0.005,96396.0,96392.0,0.1298113]
[1763175521863,0.005,96396.0,96395.0,0.02598]
[1763175523174,0.005,96396.0,96395.0,0.63435928]
[1763175525077,0.04269,96396.0,96395.0,0.63435928]
[1763175525270,0.06694,96396.0,96395.0,0.62136928]
[1763175525471,0.06694,96396.0,96395.0,0.51763]
[1763175525675,0.06694,96396.0,96395.0,0.50464]
[1763175526572,0.06694,96396.0,96390.0,0.36153267]
[1763175526573,0.04747,96391.0,96390.0,0.36153267]
[1763175526875,0.04747,96391.0,96390.0,0.00073267]
[1763175527774,0.38027,96396.0,96386.0,0.13369146]
[1763175527775,0.04747,96387.0,96386.0,0.13369146]
[1763175527972,0.04747,96387.0,96386.0,0.00015566]
[1763175531373,0.04747,96387.0,96386.0,0.10399346]
[1763175531677,0.04747,96387.0,96386.0,0.00015566]
[1763175535980,0.04747,96378.0,96377.0,0.1335358]
[1763175536176,0.04747,96366.0,96365.0,0.3871]
[1763175536375,0.04747,96366.0,96365.0,0.3608]
[1763175542188,0.04494,96362.0,96361.0,8.006e-05]
[1763175543796,0.04342,96357.0,96356.0,0.00015566]
[1763175544588,0.04342,96357.0,96356.0,0.01387659]
[1763175544890,0.04351378,96357.0,96356.0,0.01387659]
[1763175546091,0.04342,96341.0,96340.0,0.1038874]
[1763175546895,0.05691,96336.0,96335.0,0.8648]
[1763175547192,0.05691,96336.0,96335.0,0.87891127]